Cogmind - Beta 17 *** ADVENTURER MODE // 2026.06.28 @ 23:49:44 Player: Iris Result: Destroyed by G-34 Mercenary with Small Laser Performance ------------- Evolutions (1) 500 Regions Visited (4) 800 Robots Destroyed (3) 15 Value Destroyed (94) 94 Prototype IDs (0) 0 Alien Tech Used (0) 0 Bonus (200) 200 TOTAL SCORE: 1609 Bonus ------- Pacifist 200 Cogmind --------- Core Integrity 0/400 Matter 116/300 Energy 98/100 System Corruption 4% Temperature Cool (12) Movement Core (50) Location -9/Mines Parts ------- > --- POWER (1) -------- (None) > --- PROPULSION (3) --- (None) > --- UTILITY (2) ------ Propulsion Shielding > --- WEAPON (3) ------- (None) > --- INVENTORY (5) ---- Medium Matter Pod (0) Power Shielding Medium Laser Medium Laser Rocket Launcher Peak State ------------ > --- POWER ------------ Light Ion Engine > --- PROPULSION ------- Compact Wheel VTOL Module > --- UTILITY ---------- Improved Sensor Array Propulsion Shielding > --- WEAPON ----------- Medium Laser Medium Laser > --- INVENTORY -------- Power Shielding Grenade Launcher Grenade Launcher Rocket Launcher [Rating: 10] Favorites ----------- Power Light Ion Engine Engine Light Ion Engine Propulsion Compact Wheel Wheel Compact Wheel Flight Unit VTOL Module Utility Propulsion Shielding Device Improved Sensor Array Storage Medium Matter Pod Protection Propulsion Shielding Weapon Medium Laser Energy Gun Medium Laser Launcher Grenade Launcher Slashing Weapon Mining Claw Build | -11 -10 -10 -9 -9 ------- Run | Yrd Mat Min Mat Min Slots Evolved 2 | . . . 2 . Power . | . . . . . Propulsion 1 | . . . 1 . Utility . | . . . . . Weapon 1 | . . . 1 . Parts Attached 14 | 5 2 . 7 . Power 1 | 1 . . . . Engine 1 | 1 . . . . Core . | . . . . . Reactor . | . . . . . Propulsion 3 | 2 . . 1 . Treads . | . . . . . Leg . | . . . . . Wheel 2 | 2 . . . . Hover . | . . . . . Flight 1 | . . . 1 . Utility 4 | . 2 . 2 . Device 1 | . . . 1 . Storage 1 | . . . 1 . Processor . | . . . . . Hackware . | . . . . . Protection 2 | . 2 . . . Artifact . | . . . . . Weapon 6 | 2 . . 4 . Energy Gun 2 | 2 . . . . Energy Cannon . | . . . . . Ballistic Gun . | . . . . . Ballistic Cannon . | . . . . . Launcher 3 | . . . 3 . Special Weapon . | . . . . . Impact Weapon . | . . . . . Slashing Weapon 1 | . . . 1 . Piercing Weapon . | . . . . . Special Melee Weapon . | . . . . . Unidentified Prototypes . | . . . . . Parts Lost 5 | . . . 5 . Power 1 | . . . 1 . Propulsion 2 | . . . 2 . Utility 1 | . . . 1 . Weapon 1 | . . . 1 . Highest Loss Streak 4 | . . . 4 . To Critical Strikes . | . . . . . Average Backups 3 | . 1 3 3 5 Power . | . . . . . Propulsion . | . . . . . Utility . | . . . . 2 Weapon 2 | . 1 3 3 3 Tool/Special . | . . . . . Unused Backups . | . . . . . Power . | . . . . . Propulsion . | . . . . . Utility . | . . . . . Weapon . | . . . . . Tool/Special . | . . . . . Average Slot Usage (%) 76 | . 84 100 64 11 Engine 11 | . 14 14 9 . Wheel 19 | . 28 28 12 . Flight 3 | . . . 7 . Device 1 | . . . 3 . Protection 18 | . 13 28 14 11 Energy Gun 18 | . 28 28 9 . Launcher 3 | . . . 8 . Peak Build Rating 10 | 5 7 7 10 1 Average Rating 6 | 2 6 7 7 1 On Entrance 4 | . 5 7 7 1 Avg Prop Armor Cover (%) 5 | . . 8 5 . Naked Turns . | . . . . . Heaviest Build 11 | 7 9 9 11 1 Greatest Support 26 | 26 26 26 16 3 Greatest Overweight (x) 1 | . . . 1 . Average Overweight (x) . | . . . . . Largest Inventory Capacity 5 | 5 5 5 5 5 Average Capacity 5 | 5 5 5 5 5 Most Carried 5 | 2 3 3 5 5 Average Carried 3 | . 1 3 3 5 Final Capacity 5 | 5 5 5 5 5 Final Carried 5 | . 3 3 5 5 Class Distribution -------------------- 100% | Mutant Dominant Class ---------------- Mutant | -10/Materials Mutant | -10/Mines Mutant | -9/Materials Mutant | -9/Mines Resources | -11 -10 -10 -9 -9 ----------- Run | Yrd Mat Min Mat Min Matter Collected 87 | . . . 87 . Remotely . | . . . . . Salvage Created 87 | . . . 87 . Parts 6 | . . . 6 . Haulers Intercepted . | . . . . . Recyclers Shooed . | . . . . . Parts Field Recycled . | . . . . . Retrieved Matter . | . . . . . Parts Self-Destructed . | . . . . . Prevented . | . . . . . Parts Restored . | . . . . . Kills | -11 -10 -10 -9 -9 ------- Run | Yrd Mat Min Mat Min Combat Hostiles Destroyed 2 | . . . 2 . Guns 1 | . . . 1 . AOE 1 | . . . 1 . Classes Destroyed 3 | . . . 3 . Builder 1 | . . . 1 . Grunt 1 | . . . 1 . Sentry 1 | . . . 1 . Best Kill Streak 1 | . . . 1 . Combat Bots Only 1 | . . . 1 . Max Kills in Single Turn 1 | . . . 1 . Gunslinging . | . . . . . Exploded 1 | . . . 1 . Melee . | . . . . . Uniques/NPCs Destroyed . | . . . . . Combat | -11 -10 -10 -9 -9 -------- Run | Yrd Mat Min Mat Min Hostile Shots Fired 110 | . . . 51 59 Missed 41 | . . . 19 22 Hits 69 | . . . 32 37 Projectile 69 | . . . 32 37 Critical Strikes 5 | . . . 4 1 Actively Blocked 2 | . . . 2 . Damage Taken 644 | . . 3 371 270 Core 404 | . . . 146 258 Absorbed by Shields . | . . . . . Redirected to Shielding 20 | . . . 20 . Ignored by Resistances 186 | . . . 103 83 Core Remaining (%) 100 | 100 . 100 . . Volleys Fired 6 | . . . 6 . Largest 2 | . . . 2 . Hottest 100 | . . . 100 . Shots Fired 12 | . . . 12 . Gun 6 | . . . 6 . Cannon . | . . . . . Launcher 6 | . . . 6 . Special . | . . . . . Kinetic . | . . . . . Thermal 6 | . . . 6 . Explosive 6 | . . . 6 . Electromagnetic . | . . . . . Robot Hit Streak 5 | . . . 5 . Robot Miss Streak 1 | . . . 1 . Penetration Max . | . . . . . Secondary Targets . | . . . . . Shots Hit Robots 10 | . . . 10 . Core Hits 9 | . . . 8 1 Critical Kills . | . . . . . Critical Parts Destroyed . | . . . . . Critical Strikes . | . . . . . Melee Attacks . | . . . . . Impact . | . . . . . Slashing . | . . . . . Piercing . | . . . . . Sneak Attacks . | . . . . . Combat Hostiles . | . . . . . Follow-up Attacks . | . . . . . Damage Inflicted 380 | . . 8 321 51 Guns 64 | . . . 64 . Cannons . | . . . . . Explosions 233 | . . . 233 . Melee . | . . . . . Ramming 83 | . . 8 24 51 Kinetic . | . . . . . Thermal 64 | . . . 64 . Explosive 233 | . . . 233 . Electromagnetic . | . . . . . Impact . | . . . . . Slashing . | . . . . . Piercing . | . . . . . Highest Corruption 4 | . . . 4 4 Average Corruption 3 | . . . 3 4 Corruption Purged . | . . . . . Corruption Blocked . | . . . . . Effects 1 | . . . . 1 Matter Fused 1 | . . . . 1 Overload Shots . | . . . . . Overflow Damage . | . . . . . Projectiles . | . . . . . Explosions . | . . . . . Melee . | . . . . . Knockbacks . | . . . . . Impact . | . . . . . Kinetic . | . . . . . Secondary . | . . . . . Self-Inflicted Damage 64 | . . 3 38 23 Shots 1 | . . . 1 . Rammed 30 | . . 2 12 16 Targets Rammed 30 | . . 2 12 16 Kicked . | . . . . . Crushed . | . . . . . Highest Temperature 60 | . . . 60 . Average Temperature 24 | . . . 24 . Received Heat Transfer 237 | . . . 180 57 Siege Activations . | . . . . . Martial Activations . | . . . . . Shielding Activations . | . . . . . Robots Disrupted . | . . . . . Combat Hostiles . | . . . . . Robots Corrupted . | . . . . . Combat Hostiles . | . . . . . Parts Fried . | . . . . . Impact Corruptions . | . . . . . Robots Melted . | . . . . . Combat Hostiles . | . . . . . Parts Melted 1 | . . . 1 . Heat Transferred 185 | . . . 185 . Parts Sabotaged . | . . . . . Parts Stolen . | . . . . . Parts Stripped . | . . . . . Power Chain Reactions . | . . . . . Alert | -11 -10 -10 -9 -9 ------- Run | Yrd Mat Min Mat Min Maximum Alert Level . | . . . . . Low Security (%) 100 | 100 100 100 100 100 Level 1 . | . . . . . Level 2 . | . . . . . Level 3 . | . . . . . Level 4 . | . . . . . Level 5 . | . . . . . High Security . | . . . . . Max Security . | . . . . . Peak Influence 76 | . 3 30 76 4 Initial 4 | . . . . 4 Average 7 | . . 2 16 1 Influence Increases 148 | . 3 30 115 . Destroy 0b10 Robot/C 40 | . . . 40 . Destroy 0b10 Robot/NC 5 | . . . 5 . Destroy Leader 20 | . . . 20 . Successful Hack 3 | . 3 . . . Disable Machine 9 | . . . 9 . Destroy Structure 26 | . . . 26 . Lose Combat Pursuer 45 | . . 30 15 . Influence Decreases 148 | . 3 30 100 15 Entered New Map 11 | . . . . 11 Time Decay 127 | . 3 30 90 4 Lost Part 10 | . . . 10 . Squads Dispatched 2 | . . . 2 . Investigation . | . . . . . Extermination . | . . . . . Reinforcement 2 | . . . 2 . Assault . | . . . . . Garrison . | . . . . . Intercept . | . . . . . Searches Triggered . | . . . . . Construction Impeded . | . . . . . Haulers Reinforced . | . . . . . Active Scanning Responses . | . . . . . Cargo Convoy Interrupts . | . . . . . Stealth | -11 -10 -10 -9 -9 --------- Run | Yrd Mat Min Mat Min Distress Signals 1 | . . . 1 . Communications Jammed . | . . . . . Distress Signals . | . . . . . Times Spotted 19 | . . 2 10 7 Peak Tracking Total 7 | . . 2 7 7 Tactical Retreats 2 | . . 1 1 . Traps | -11 -10 -10 -9 -9 ------- Run | Yrd Mat Min Mat Min Traps Triggered 1 | . . . 1 . Indirectly . | . . . . . Trap Hack Attempts . | . . . . . Triggered . | . . . . . Disarmed . | . . . . . Reprogrammed . | . . . . . Reused . | . . . . . Traps Extracted . | . . . . . Installed . | . . . . . Triggered . | . . . . . Machines | -11 -10 -10 -9 -9 ---------- Run | Yrd Mat Min Mat Min Machines Disabled 1 | . . . 1 . Max in Single Turn 1 | . . . 1 . Machines Repaired . | . . . . . Machines Dismantled . | . . . . . Machines Sabotaged . | . . . . . Overloaded Fab Kills . | . . . . . Hacking | -11 -10 -10 -9 -9 --------- Run | Yrd Mat Min Mat Min Machines Accessed 2 | . 2 . . . Terminals 1 | . 1 . . . Fabricators . | . . . . . Repair Stations . | . . . . . Recycling Units 1 | . 1 . . . Scanalyzers . | . . . . . Garrison Access . | . . . . . Total Hacks 4 | . 4 . . . Successful 4 | . 4 . . . Failed . | . . . . . Catastrophic . | . . . . . Database Lockouts . | . . . . . Manual . | . . . . . Terminals 2 | . 2 . . . Fabricators . | . . . . . Repair Stations . | . . . . . Recycling Units 2 | . 2 . . . Scanalyzers . | . . . . . Garrison Access . | . . . . . Terminal Hacks 2 | . 2 . . . Record 1 | . 1 . . . Dispatch Records 1 | . 1 . . . Fabricator Hacks . | . . . . . Repair Station Hacks . | . . . . . Recycling Unit Hacks 2 | . 2 . . . Report Inventory 1 | . 1 . . . Retrieve Matter 1 | . 1 . . . Scanalyzer . | . . . . . Garrison Access Hacks . | . . . . . Unauthorized Hacks . | . . . . . Terminals . | . . . . . Fabricators . | . . . . . Repair Stations . | . . . . . Recycling Units . | . . . . . Scanalyzers . | . . . . . Garrison Access . | . . . . . Data Cores Recovered . | . . . . . Used . | . . . . . Hacking Detections . | . . . . . Full Trace Events . | . . . . . Feedback Events . | . . . . . Feedback Blocked . | . . . . . Robot Schematics Acquired . | . . . . . Robots Built . | . . . . . Authchips . | . . . . . Time . | . . . . . Total Robot Build Rating . | . . . . . Part Schematics Acquired . | . . . . . Parts Built . | . . . . . Authchips . | . . . . . Time . | . . . . . Total Part Build Rating . | . . . . . Part Studies Acquired . | . . . . . Parts Repaired . | . . . . . Time . | . . . . . Parts Recycled . | . . . . . Recycled Matter . | . . . . . Retrieved Matter . | . . . . . Retrieved Components . | . . . . . Parts Scanalyzed . | . . . . . Part Schematics Acquired . | . . . . . Parts Damaged . | . . . . . Bothacking | -11 -10 -10 -9 -9 ------------ Run | Yrd Mat Min Mat Min Used RIF Installer . | . . . . . Robots Hacked . | . . . . . Non-combat . | . . . . . Combat . | . . . . . Robot Hacks Applied . | . . . . . Relay Couplers Released . | . . . . . Fabnet Peak Effective % . | . . . . . Robots Rewired . | . . . . . Allies Hacked . | . . . . . Hacks Repelled . | . . . . . Allies | -11 -10 -10 -9 -9 -------- Run | Yrd Mat Min Mat Min Total Allies . | . . . . . Largest Group . | . . . . . Highest-Rated Group . | . . . . . Highest-Rated Ally . | . . . . . Total Orders . | . . . . . Ally Attacks . | . . . . . Total Damage . | . . . . . Kills . | . . . . . Allies Corrupted . | . . . . . Allies Melted . | . . . . . Intel | -11 -10 -10 -9 -9 ------- Run | Yrd Mat Min Mat Min Active Infowar (turns) 124 | . . . 124 . Sensors 124 | . . . 124 . Robot Analysis Total . | . . . . . Derelict Logs Recovered 1 | . . 1 . . Drone Launches . | . . . . . Drone Recoveries . | . . . . . Exploration | -11 -10 -10 -9 -9 ------------- Run | Yrd Mat Min Mat Min Turns Passed 944 | 33 163 312 389 47 Spaces Moved 974 | 26 174 345 367 62 Core 124 | 5 . . 57 62 Treads . | . . . . . Legs . | . . . . . Wheels 850 | 21 174 345 310 . Hover . | . . . . . Flight . | . . . . . Fastest Speed 50 | 50 90 90 50 50 Average Speed 88 | 82 90 90 93 50 Slowest Speed 100 | 90 90 100 100 50 Overloaded Moves . | . . . . . Propulsion Burnouts . | . . . . . Robots Hopped . | . . . . . Potential Cave-ins . | . . . . . Cave-ins Triggered . | . . . . . Exploration Rate (%) 25 | 3 31 58 22 14 Regions Visited 4 Branch Regions 2 Pre-discovered Areas . | . . . . . Known Exits Taken . | . . . . . Unknown Exits Taken 4 | 1 1 1 1 . Scrap Searched . | . . . . . Spaces Dug . | . . . . . Terrain Destroyed 44 | . . . 44 . Melee . | . . . . . Projectile . | . . . . . AOE 44 | . . . 44 . Terrain Rammed . | . . . . . Walls Destroyed . | . . . . . Machines Disabled . | . . . . . Actions | -11 -10 -10 -9 -9 --------- Run | Yrd Mat Min Mat Min Total 1041 | 37 180 346 400 78 Wait 2 | 2 . . . . Move 970 | 25 173 344 366 62 Hop . | . . . . . Pick Up 14 | 5 5 . 4 . Fast Attach . | . . . . . Attach 12 | 5 2 . 5 . Detach 3 | . . . 3 . Swap 2 | . . . 2 . Drop 2 | . . . 2 . Fire 6 | . . . 6 . Melee . | . . . . . Ram 30 | . . 2 12 16 Kick . | . . . . . Crush . | . . . . . Escape Stasis . | . . . . . Rewire . | . . . . . Trap . | . . . . . Miscellaneous . | . . . . . Route ------- -11/Scrapyard -10/Materials -10/Mines -9/Materials -9/Mines History --------- Turn | Location | Event 10 | -11/Scrapyard | Discovered new exit (range 16) 34 | -11/Scrapyard | Entered Materials 153 | -10/Materials | Discovered new exit (range 7) 197 | -10/Materials | Entered Mines 207 | -10/Mines | Learned Materials garrison access intel 315 | -10/Mines | Build established: Mutant 405 | -10/Mines | Assembled infested the area 504 | -10/Mines | Discovered new exit (range 6) 509 | -10/Mines | Entered Materials 509 | -9/Materials | Evolved 2 slots: Propulsion x1, Weapon x1 885 | -9/Materials | Discovered new exit (range 7) 898 | -9/Materials | Entered Mines 905 | -9/Mines | Lost 4 parts (1p2n1w) 905 | -9/Mines | Core integrity fell below 50% 932 | -9/Mines | Core integrity fell below 20% 945 | -9/Mines | Destroyed by G-34 Mercenary with Small Laser Last Messages --------------- 00855_ Destabilizing: Short circuit. 00856_ Slammed into G-34 Mercenary. 00857_ Destabilizing: System corrupted (+1). 00858_ Slammed into G-34 Mercenary. 00866_ U-05 Engineer destroyed. 00868_ ALERT: Hostiles spotted, dispatching reinforcements to Terminal M011. 00869_ K-01 Serf collects debris. 00871_ Critical hit (Burn: +37). 00871_ Broken Grenade Launcher destroyed. 00874_ Broken Com. Wheel destroyed. 00874_ K-01 Serf collects debris. 00885_ EXIT=FOUND 00892_ Acquired Med. Matter Pod. LOCATION=UNKNOWN GOAL=ESCAPE Something is scanning the area. 00929_ Slammed into S-10 Pest. 00940_ System corrupted: Matter fused (-5). 00940_ Slammed into S-10 Pest. Map ----- +----------------------------------------------------+ | ???????????????????????????????? #????????????? | | ???????????????????????????????? #????????????? | | ???????????????????????????????? #????????????? | | ???????????????????????????????# #????????????? | | ???????????????????????????????# #????????????? | | ???????????????????????????????# #????????????? | | ???????????????????????????????# #????????????? | | ???????????????????????????????# #????????????? | | ??????????????????????????????## #????????????? | | ?????????????????????????????## ##???????????? | | ?????????????????????????????# ##??????????? | | ?????????????????????????????# #######????? | | ??????????????????????????#### #????? | | ??????????????????????????# # ### #????? | | ??????????????????????????# ### ## #????????? | | ??????????????????????????# #?# #### ###??????? | | ??????????????????????????# #?# #??# #??????? | | ??????????????????????????# #?# #??### #??????? | | ??????????????????????????# #?# #????# #??????? | | ??????????????????????????# #?# #???## ##?????? | | ??????????????????????????# #?# #???# #?????? | | ?????????????????????###### #?# ????# ##????? | | ?????????????????????# #??#????# ##???? | | ?????????????????????# ######???????## ###?? | | ??????????????????#### ######????????## ##? | | ??????????????????# s@ #?????????## #? | | ??????????????????# s #??????????# # | | ??????????????????# s gg #?????????# | | ??????????????????# """ """ #?????????# | | ??????????????????# """ """ #?????????# ## | | ??????????????????# """ """ #?????????## ##? | | ??????????????????# s g #??????????######?? | | ??????????????????###########?????????????????? | | ??????????????????????????????????????????????? | | ??????????????????????????????????????????????? | | | | | | | | | | | | | | | | | | | | | | | | | | | | | | | +----------------------------------------------------+ Best States ------------- Heat Dissipation 28 Energy Generation 10 Energy Capacity 125 Matter Stores 101 Matter Capacity 300 Sight Range 16 Robot Scan Range 15 Terrain Scan Density 10 Resistance: KI 20 Resistance: TH 20 Resistance: EX 20 Resistance: EM 20 Resistance: I 20 Resistance: S 20 Resistance: P 20 Power Shielding 33 Propulsion Shielding 33 Evasion (%) 50 Offensive Hacking 10 Item Schematics ----------------- None Robot Schematics ------------------ None Fabricated ------------ Nothing Repaired ---------- Nothing Studied --------- None Alien Tech Used ----------------- None Achievements -------------- That Tickles Challenges ------------ None Game ------ Seed StasisLegAxe Manual? 0 Play Time 00:19:43 Cumulative 30.0 hours Start 2026.06.28 @ 23:26:15 End 2026.06.28 @ 23:49:44 Sessions 1 Manual Loads 0 Difficulty Adventurer Special Mode None Game No. 70 Rogue 40 Adventurer 30 Explorer 0 Win Type - Total 0 Types 0/0/0/0/0/0/0/0/0/0 Lore% 13 Gallery% 27 Achievement% 18 Wizard Run 0 Options --------- Layout 1 ASCII 0 Keyboard 0 Movement Arrows Keybinds 0 Fullscreen 0 Font 28/SmallcapsGlow Map View 77x35 Zoom Use 14% Tactical HUD 1 Map Filters NONE Filters NONE Steam X RUN: 3904ac4c-1e41-4c61-b501-425eaa866588